bitfinex-derivatives/quotes_ETHF0:USTF0_20250919
["timestamp","ask_amount","ask_price","bid_price","bid_amount"]
[1758293576853,0.27374866,4504.2,4504.1,7.54]
[1758293577054,0.52174866,4504.2,4504.1,7.93944]
[1758293577557,0.52174866,4504.2,4504.1,3.93944]
[1758293578054,0.52131234,4504.2,4504.1,7.93944]
[1758293578252,1e-08,4504.2,4504.1,7.93944]
[1758293578450,1e-08,4504.2,4504.1,7.54]
[1758293578653,1e-08,4504.2,4504.1,0.3322]
[1758293578854,0.24900001,4504.2,4504.1,0.3322]
[1758293579048,0.24900001,4504.2,4503.9,3.2078]
[1758293579049,0.60160001,4504.2,4503.9,3.2078]
[1758293579258,0.6016,4504.2,4503.9,3.2078]
[1758293579458,0.3526,4504.2,4503.9,3.5612]
[1758293579658,0.2,4504.1,4503.9,3.60725]
[1758293579956,0.3526,4504.9,4504.0,0.3534]
[1758293580160,0.249,4504.8,4504.1,0.39943]
[1758293580451,0.249,4504.7,4504.1,0.3534]
[1758293580654,3.2078,4505.6,4504.6,1.35189]
[1758293580853,0.249,4505.5,4504.7,0.3534]
[1758293581054,0.249,4505.5,4505.1,0.39935]
[1758293581361,0.249,4505.5,4505.2,0.39934]
[1758293581362,0.3526,4505.4,4505.2,0.39934]
[1758293581559,0.3526,4505.4,4504.7,0.3534]
[1758293581757,3.5604,4505.1,4504.0,0.5017]
[1758293582058,0.249,4505.0,4504.3,0.39942]
[1758293582257,0.249,4505.0,4504.5,0.3534]
[1758293582448,0.6016,4505.0,4504.5,0.3994]
[1758293582651,0.6016,4505.0,4504.7,0.75279]
[1758293582853,0.3526,4504.9,4504.5,0.3994]
[1758293583047,0.249,4505.0,4504.7,0.39938]
[1758293583257,3.2078,4505.1,4504.5,0.3994]
[1758293583455,0.6006,4505.0,4504.2,0.3534]
[1758293583650,3.2078,4505.1,4505.0,0.3534]
[1758293584058,3.4558,4505.1,4505.0,0.3534]
[1758293584760,3.4558,4505.1,4504.9,0.3534]
[1758293584951,3.2078,4505.6,4505.4,0.39932]
[1758293585156,3.2078,4505.6,4505.5,0.3534]
[1758293585561,3.4558,4505.6,4505.5,0.3534]
[1758293586058,3.2078,4505.6,4505.5,0.3534]
[1758293586364,3.4558,4505.6,4505.4,0.39932]
[1758293586553,0.3526,4505.5,4505.4,0.39932]
[1758293586753,0.3526,4505.5,4505.3,0.39933]
[1758293586954,0.4988,4505.5,4504.7,0.39938]
[1758293587158,0.3526,4505.0,4504.8,0.39938]
[1758293587358,3.2078,4505.1,4505.0,0.3534]
[1758293587554,3.5604,4505.1,4504.9,0.39937]
[1758293587752,0.248,4505.0,4504.9,0.75277]
[1758293587959,3.2078,4505.1,4504.9,0.75277]
[1758293588160,0.248,4505.0,4504.9,0.75277]
[1758293588363,3.2078,4505.1,4505.0,0.3534]
[1758293588558,0.248,4505.1,4505.0,0.5017]
[1758293588858,0.248,4505.1,4505.0,0.90106]
[1758293589258,3.2078,4505.8,4505.7,0.3534]
[1758293589462,3.4558,4505.8,4505.7,0.3534]
[1758293589762,0.3526,4505.7,4505.5,0.75271]
[1758293590160,3.2078,4505.8,4505.7,0.7527]
[1758293590360,4.06569325,4505.8,4505.7,0.3993]
[1758293590554,4.06569325,4505.8,4505.2,0.3534]
[1758293590757,0.25729325,4505.7,4505.2,0.3534]
[1758293590957,0.25729325,4505.7,4505.5,0.3534]
[1758293591161,0.25729325,4505.7,4505.6,0.75271]
[1758293591761,0.50529325,4505.7,4505.6,0.75271]
[1758293593670,0.85789325,4505.7,4505.2,0.39933]
[1758293593869,0.3526,4505.5,4505.3,0.39933]
[1758293594066,3.2078,4505.8,4504.9,0.0221]
[1758293594067,0.3526,4505.3,4504.9,0.0221]
[1758293594376,0.3526,4504.9,4504.2,0.39943]
[1758293594666,3.354,4505.0,4504.7,0.3534]
[1758293594667,0.50529325,4504.8,4504.7,0.3534]
[1758293595266,0.25729325,4504.8,4504.7,0.3534]
[1758293595468,3.2078,4505.0,4504.9,0.3534]
[1758293595663,3.72738749,4505.0,4504.9,0.3534]
[1758293596262,0.27158749,4505.0,4504.9,0.3534]
[1758293596469,0.51958749,4505.0,4504.9,0.3534]
[1758293598073,0.51958749,4505.0,4504.9,4.3534]
[1758293598074,0.27158749,4505.0,4504.9,4.3534]
[1758293600270,0.78162882,4505.0,4504.9,4.3534]
[1758293600462,0.78162882,4505.0,4504.9,0.3534]
[1758293601170,0.27158749,4505.0,4504.9,0.3534]
[1758293604177,0.3526,4506.0,4505.9,0.39928]
[1758293604374,0.61627733,4506.0,4505.5,0.39931]
[1758293604678,0.3526,4505.8,4505.7,0.3993]
[1758293604872,1.07888885,4505.8,4505.7,0.3993]
[1758293605075,0.97428885,4505.8,4505.7,0.7527]
[1758293605472,1.32688885,4505.8,4505.7,0.3993]
[1758293605782,0.72628885,4505.8,4505.7,0.7527]
[1758293606075,1.32688885,4505.8,4505.2,0.99836]
[1758293606378,3.93408885,4505.7,4505.6,0.39931]
[1758293606573,3.93408885,4505.7,4505.4,0.39932]
[1758293606776,0.72628885,4505.6,4505.5,0.39931]
[1758293606978,0.97428885,4505.6,4505.5,0.75271]
[1758293607278,0.72628885,4505.6,4505.5,0.75271]
[1758293607475,0.97428885,4505.6,4505.5,0.75271]
[1758293608476,0.72628885,4505.6,4505.5,0.75271]
[1758293608677,0.97428885,4505.6,4505.5,0.75271]
[1758293609175,1.36068885,4505.6,4505.1,0.99836]
[1758293609378,0.1462,4504.5,4502.7,1.98422612]
[1758293609576,3.2078,4502.8,4502.1,0.3884]
[1758293609873,0.97428885,4502.7,4502.2,0.3884]
[1758293610080,0.72628885,4502.6,4502.2,0.3884]
[1758293610278,3.2078,4502.3,4502.1,0.3884]
[1758293610582,0.22207733,4502.2,4502.1,0.3884]
[1758293611479,0.25342324,4502.2,4501.8,0.3884]
[1758293611672,0.25342324,4502.1,4501.8,0.39964]
[1758293611876,0.25342324,4502.0,4501.9,0.3884]
[1758293612276,0.25342324,4502.0,4501.9,0.78803]
[1758293612780,0.25342324,4502.0,4501.9,0.3884]
[1758293615888,0.25342324,4502.0,4501.3,1.24721]
[1758293615889,0.3864,4501.4,4499.3,0.39986]
[1758293616084,0.3864,4499.3,4499.2,0.39987]
[1758293616281,0.3864,4499.3,4498.0,4.88638231]
[1758293616282,0.3864,4499.3,4498.5,0.3822]
[1758293616488,3.2078,4498.9,4498.1,0.99994]
[1758293616689,3.2078,4498.9,4498.0,3.339]
[1758293616883,3.2078,4498.9,4498.4,0.39994]
[1758293617089,3.5942,4498.5,4498.2,0.39996]
[1758293617285,3.5942,4498.5,4497.5,0.1312]
[1758293617490,3.2078,4497.7,4497.5,0.40002]
[1758293617982,3.2078,4497.7,4497.6,0.3884]
[1758293618386,3.2078,4498.2,4497.1,1.00014]
[1758293618592,3.2078,4498.2,4497.4,0.3884]
[1758293618792,3.2078,4498.2,4498.0,0.39998]
[1758293619093,3.2078,4498.2,4498.1,0.3884]
[1758293619490,3.2078,4498.7,4498.2,0.99992]
[1758293619795,3.5942,4499.8,4499.7,0.39983]
[1758293620293,3.2078,4499.8,4499.7,0.39983]
[1758293620692,3.5942,4499.8,4499.7,0.39983]
[1758293621800,3.8452,4499.8,4499.7,0.39983]
[1758293622898,3.5942,4499.8,4499.7,0.39983]
[1758293623102,3.4588,4499.8,4499.7,0.39983]
[1758293623404,3.2078,4499.8,4499.7,0.78823]
[1758293623600,3.2078,4499.8,4499.7,4.78823]
[1758293624502,3.2078,4499.8,4499.7,0.78823]
[1758293625000,3.2078,4499.8,4499.7,0.39983]
[1758293625202,0.3864,4500.2,4500.1,0.39979]
[1758293626292,3.4578,4500.3,4500.1,0.39979]
[1758293626495,0.3864,4500.2,4500.1,0.39979]
[1758293627389,0.1504,4501.0,4499.8,0.3884]
[1758293627390,0.25,4500.4,4500.0,0.9995]
[1758293627591,0.25,4500.4,4500.3,0.39978]
[1758293627797,4.22222,4500.3,4499.0,0.1469]
[1758293628105,3.2078,4499.1,4499.0,0.5353]
[1758293628496,3.4608,4499.1,4499.0,0.5353]
[1758293628898,7.4608,4499.1,4499.0,0.5353]
[1758293629402,7.2078,4499.1,4499.0,0.5353]
[1758293629600,7.4608,4499.1,4499.0,0.5353]
[1758293631393,7.2078,4499.1,4499.0,0.5353]
[1758293631599,7.4608,4499.1,4499.0,0.5353]
[1758293632002,3.4608,4499.1,4499.0,0.5353]
[1758293632906,3.2078,4499.1,4499.0,0.5353]
[1758293633206,3.4598,4499.1,4499.0,0.5353]
[1758293636905,3.4598,4499.1,4499.0,0.1469]
[1758293637302,3.69160283,4499.1,4499.0,0.1469]
[1758293637702,7.69160283,4499.1,4498.5,0.5353]
[1758293637909,3.2078,4498.6,4498.5,0.5353]
[1758293638307,3.69191357,4498.6,4498.5,0.5353]
[1758293639618,3.43991357,4498.6,4498.5,0.5353]
[1758293639920,3.69191357,4498.6,4498.5,0.5353]
[1758293640709,3.43991357,4498.6,4498.5,0.5353]
[1758293641205,4.2141448,4498.6,4498.5,0.5353]
[1758293642705,3.9631448,4498.6,4498.5,0.5353]
[1758293643116,3.69091357,4498.6,4498.5,0.5353]
[1758293643311,4.2148159,4498.6,4498.5,0.5353]
[1758293644313,3.9638159,4498.6,4498.5,0.5353]
[1758293644518,3.43991357,4498.6,4498.5,4.5353]
[1758293645319,3.96503533,4498.6,4498.5,4.5353]
[1758293645818,3.96635062,4498.6,4498.5,4.5353]
[1758293646516,0.75855062,4498.6,4498.5,0.5353]
[1758293646819,0.23342886,4498.6,4498.5,4.5353]
[1758293647018,3.69122886,4498.6,4498.5,0.5353]
[1758293647218,4.21654836,4498.6,4498.5,0.5353]
[1758293653421,1.98236281,4500.0,4499.5,0.1586]
[1758293653422,0.249,4499.6,4499.5,0.1586]
[1758293653621,4.793894,4500.1,4499.5,0.1586]
[1758293653622,3.2078,4500.1,4499.5,0.1586]
[1758293653828,0.249,4500.0,4499.5,0.1586]
[1758293654126,0.249,4500.0,4499.9,0.4209]
[1758293655321,0.249,4500.0,4499.5,0.1586]
[1758293655629,3.2078,4499.6,4499.4,0.82075]
[1758293655826,0.249,4499.5,4499.4,0.82075]
[1758293656227,0.249,4499.5,4499.4,0.4209]
[1758293656423,0.249,4499.5,4499.0,0.1586]
[1758293656628,3.2078,4499.1,4499.0,0.1586]
[1758293656828,3.4568,4499.1,4499.0,0.1586]
[1758293657022,3.4568,4499.1,4499.0,0.5795]
[1758293657424,0.037,4499.1,4498.5,0.1469]
[1758293657724,0.037,4499.1,4497.9,0.0083]
[1758293657725,2.225,4501.3,4497.9,0.0083]
[1758293657726,2.31433694,4505.2,4501.8,3.2078]
[1758293658032,0.17,4506.5,4505.0,9.98394]
[1758293658327,0.17,4506.0,4505.9,0.39928]
[1758293658527,0.17,4505.0,4504.9,0.39937]
[1758293658723,2.2221,4506.3,4506.2,0.39925]
[1758293658930,1.72304,4506.3,4506.2,1.89177929]
[1758293659431,2.02004,4506.3,4506.2,1.89177929]
[1758293659631,1.221522,4506.3,4506.2,1.89177929]
[1758293659830,12.221522,4506.3,4506.2,1.5449964]
[1758293661531,12.221522,4506.3,4506.2,3.11328211]
[1758293661832,12.221522,4506.3,4506.2,2.76650207]
[1758293662332,16.221522,4506.3,4506.2,1.19821636]
[1758293662633,0.3999,4505.9,4505.6,0.39931]
[1758293662832,0.3999,4505.7,4505.6,1e-05]
[1758293663027,1.219522,4505.7,4505.6,1.17463303]
[1758293663228,4.3999,4505.7,4505.1,0.39935]
[1758293663428,11.295,4505.6,4505.3,0.39933]
[1758293663634,35.992,4505.5,4505.0,0.39936]
[1758293663835,35.992,4505.5,4504.8,0.39937]
[1758293664335,0.524622,4504.9,4504.8,0.39937]
[1758293664535,0.819622,4504.9,4504.8,0.39937]
[1758293664738,0.295,4504.9,4504.8,0.39937]
[1758293665039,35.992,4505.5,4505.4,0.39932]
[1758293665336,36.287,4505.5,4505.4,1.1813019]
[1758293665533,47.287,4505.5,4504.8,0.39937]
[1758293665836,3.2078,4505.2,4504.8,0.39937]
[1758293666037,0.294,4505.1,4504.8,0.39937]
[1758293666433,0.294,4505.1,4504.3,0.4209]
[1758293666434,0.294,4505.1,4505.0,0.39936]
[1758293667139,0.293,4505.1,4505.0,0.39936]
[1758293667434,0.293,4505.1,4504.8,0.39938]
[1758293667630,0.293,4505.0,4504.5,0.0222]
[1758293667837,0.293,4504.9,4504.5,0.0222]
[1758293668033,3.2078,4505.2,4504.5,0.0222]
[1758293668234,0.293,4505.1,4504.7,0.39939]
[1758293668433,0.3499,4505.1,4504.7,0.39939]
[1758293668628,7.2078,4505.2,4504.5,0.0222]
[1758293668629,0.293,4505.0,4504.6,0.39939]
[1758293668833,0.6419,4504.9,4504.7,0.39939]
[1758293669230,7.2078,4505.2,4504.7,0.39939]
[1758293669428,3.2078,4505.2,4505.1,0.79655]
[1758293669629,3.4998,4505.2,4505.1,0.79655]
[1758293669831,3.4998,4505.2,4504.9,0.39937]
[1758293670032,3.8497,4505.2,4504.9,0.39937]
[1758293670542,3.2078,4505.2,4505.0,0.79655]
[1758293670744,0.6409,4505.1,4504.5,0.0222]
[1758293671239,0.3499,4504.6,4504.5,0.0222]
[1758293671440,0.6409,4504.6,4504.5,0.0222]
[1758293671642,11.6409,4504.6,4504.3,0.39942]
[1758293671942,11.0,4504.6,4504.5,0.58628819]
[1758293672142,11.6409,4504.6,4504.5,0.58628819]
[1758293672642,15.291,4504.6,4503.5,3.76589]
[1758293672842,3.2078,4504.2,4503.5,3.76589]
[1758293673042,0.29,4504.1,4503.6,0.39948]
[1758293673237,0.29,4504.1,4503.7,0.3972]
[1758293673540,0.29,4504.0,4503.7,0.3972]
[1758293673740,0.29,4503.9,4503.5,0.1586]
[1758293673936,35.978,4503.8,4503.5,0.1586]
[1758293674145,0.29,4503.7,4503.6,0.3972]
[1758293674543,35.978,4503.8,4503.7,0.79668]
[1758293674742,36.268,4503.8,4503.7,1.48058947]
[1758293674942,35.978,4503.8,4503.7,1.48058947]
[1758293675243,36.267,4503.8,4503.7,1.48058947]
[1758293675744,36.267,4503.8,4503.7,1.08110947]
[1758293676043,36.267,4503.8,4503.7,0.68390947]
[1758293676242,36.267,4503.8,4502.5,0.2871]
[1758293676243,40.49980197,4503.8,4502.5,0.2871]
[1758293676440,3.2078,4502.8,4502.5,0.2871]
[1758293676742,3.2078,4503.4,4503.2,0.39951]
[1758293677037,3.2078,4503.4,4503.3,0.3972]
[1758293677242,13.6078,4503.4,4503.3,0.3972]
[1758293677437,17.6078,4503.4,4502.7,0.39956]
[1758293677644,3.2078,4502.9,4502.6,0.3972]
[1758293677842,0.289,4502.8,4502.6,0.3972]
[1758293678042,0.289,4502.8,4502.5,0.2871]
[1758293679144,0.289,4502.8,4502.5,0.6843]
[1758293679737,0.23331448,4502.7,4502.0,0.2871]
[1758293679945,0.23331448,4502.7,4501.9,0.013]
[1758293679946,3.2078,4502.1,4501.9,0.013]
[1758293680139,36.50229882,4502.0,4501.9,0.013]
[1758293680943,46.90229882,4502.0,4501.9,0.013]
[1758293681446,46.90229882,4502.0,4501.3,0.3972]
[1758293681643,3.2078,4501.6,4501.3,0.3972]
[1758293681844,3.2078,4501.6,4501.5,0.6843]
[1758293682241,14.128597,4501.6,4501.5,0.6843]
[1758293682643,13.8948,4501.6,4501.5,0.6843]
[1758293683247,14.12879192,4501.6,4501.5,0.6843]
[1758293683438,13.84179192,4501.6,4501.5,0.6843]
[1758293683641,14.12879192,4501.6,4501.5,0.6843]
[1758293684045,13.84179192,4501.6,4501.5,0.6843]
[1758293684344,14.12879192,4501.6,4501.5,0.6843]
[1758293684745,13.84179192,4501.6,4501.5,0.6843]
[1758293684941,14.12779192,4501.6,4501.5,0.6843]
[1758293685141,13.84179192,4501.6,4501.5,0.6843]
[1758293685940,14.12779192,4501.6,4501.5,0.6843]
[1758293686243,14.12779192,4501.6,4501.5,1.86495589]
[1758293686244,10.63399192,4501.6,4501.5,1.86495589]
[1758293686647,10.91899192,4501.6,4501.5,1.86495589]
[1758293686841,10.63399192,4501.6,4501.5,1.86495589]
[1758293687043,10.91899192,4501.6,4501.5,0.2871]
[1758293687346,14.12679192,4501.6,4501.0,0.6843]
[1758293687545,0.23399192,4501.5,4501.0,0.6843]
[1758293687747,0.285,4501.4,4501.1,0.3972]
[1758293687949,0.23399192,4501.3,4501.0,0.2871]
[1758293688147,0.285,4501.2,4501.1,0.3972]
[1758293688338,0.51899192,4501.2,4501.1,1.03240304]
[1758293690039,0.23399192,4501.2,4501.1,1.03240304]
[1758293690247,0.284,4501.2,4501.1,1.03240304]
[1758293690445,0.54077572,4501.2,4501.1,1.03240304]
[1758293691052,0.54077572,4501.2,4501.1,0.3972]
[1758293691953,0.54077572,4501.2,4501.0,0.2871]
[1758293692151,3.46457572,4501.1,4501.0,0.6843]
[1758293692654,13.86457572,4501.1,4501.0,0.6843]
[1758293692853,14.14757572,4501.1,4501.0,0.6843]
[1758293694155,13.86457572,4501.1,4501.0,0.6843]
[1758293694450,14.14657572,4501.1,4501.0,0.6843]
[1758293695557,13.86457572,4501.1,4501.0,0.6843]
[1758293695954,14.14657572,4501.1,4501.0,0.6843]
[1758293696960,14.14557572,4501.1,4501.0,0.6843]
[1758293697554,13.86457572,4501.1,4501.0,0.6843]
[1758293697761,14.14557572,4501.1,4501.0,0.6843]
[1758293699958,13.86457572,4501.1,4501.0,0.6843]
[1758293700156,3.46457572,4501.1,4501.0,4.6843]
[1758293700462,0.25677572,4501.1,4501.0,5.47585025]
[1758293700663,10.93677572,4501.1,4501.0,4.6843]
[1758293700860,10.65677572,4501.1,4501.0,4.6843]
[1758293701061,10.93677572,4501.1,4501.0,4.6843]
[1758293701462,3.74457572,4501.1,4501.0,0.6843]
[1758293701664,3.46457572,4501.1,4501.0,0.6843]
[1758293701864,14.14457572,4501.1,4501.0,0.6843]
[1758293702468,13.86457572,4501.1,4501.0,0.6843]
[1758293702666,14.14357572,4501.1,4501.0,0.6843]
[1758293703063,13.86457572,4501.1,4501.0,0.6843]
[1758293703367,0.25677572,4501.1,4501.0,4.6843]
[1758293703564,0.03907396,4501.1,4501.0,7.8921]
[1758293704064,10.4,4501.9,4501.7,0.39964]
[1758293704462,10.4,4501.9,4501.8,0.7629]
[1758293704761,10.679,4501.9,4501.8,0.7629]
[1758293704961,10.678,4501.9,4501.8,0.7629]
[1758293705365,10.4,4501.9,4501.8,0.7629]
[1758293705565,35.981,4502.0,4501.9,0.39963]
[1758293705762,36.0,4502.5,4502.4,0.7629]
[1758293706069,3.2078,4502.7,4502.6,0.7629]
[1758293706269,39.2068,4502.7,4502.6,0.7629]
[1758293706463,39.4848,4502.7,4502.6,0.7629]
[1758293707265,3.2078,4502.7,4502.6,0.7629]
[1758293707465,35.999,4503.1,4503.0,1.45483]
[1758293707662,36.276,4503.1,4503.0,1.85226459]
[1758293708062,46.676,4503.1,4502.9,0.79696459]
[1758293708269,46.676,4503.1,4502.7,0.79696459]
[1758293708468,46.676,4503.1,4502.7,1.55986459]
[1758293708866,46.676,4503.1,4502.8,0.7629]
[1758293709068,46.676,4503.1,4502.9,0.7629]
[1758293709264,46.676,4503.1,4502.7,1.55986459]
[1758293709473,46.676,4503.1,4502.8,0.7629]
[1758293709973,10.4,4503.1,4503.0,0.2924]
[1758293710168,46.674,4503.1,4503.0,1.0553]
[1758293710370,46.397,4503.1,4503.0,1.0553]
[1758293710570,46.673,4503.1,4503.0,1.0553]
[1758293711069,10.676,4503.1,4503.0,1.0553]
[1758293711269,10.4,4503.1,4503.0,1.0553]
[1758293711474,10.676,4503.1,4503.0,1.0553]
[1758293712078,3.2078,4503.8,4503.7,0.7629]
[1758293712375,3.4838,4503.8,4503.7,0.7629]
[1758293712575,13.6078,4503.8,4503.7,0.7629]
[1758293712877,13.8828,4503.8,4503.7,0.7629]
[1758293713075,13.8828,4503.8,4503.7,1.5585354]
[1758293713375,10.675,4503.8,4503.7,0.7629]
[1758293713874,10.675,4503.8,4503.7,1.5585354]
[1758293714082,10.675,4503.8,4503.7,0.7629]
[1758293715372,10.675,4503.8,4503.5,0.2924]
[1758293715373,10.675,4503.8,4503.5,1.0553]
[1758293715573,10.675,4503.8,4503.5,0.2924]
[1758293715773,10.675,4503.8,4503.6,0.7629]
[1758293716080,10.675,4503.8,4503.5,0.2924]
[1758293716272,0.274,4503.7,4503.5,1.0553]
[1758293716473,0.274,4503.7,4503.0,0.2924]
[1758293716771,0.274,4503.7,4502.0,0.2924]
[1758293716772,3.2078,4503.1,4501.9,0.79434986]
[1758293717075,3.2078,4502.2,4501.6,0.79434986]
[1758293717267,0.274,4502.1,4501.5,1.08674986]
[1758293717472,9.6,4502.0,4501.5,1.08674986]
[1758293717673,0.274,4501.9,4501.5,1.48641986]
[1758293718179,0.274,4501.9,4501.5,1.08674986]
[1758293718375,0.274,4501.9,4501.3,0.79434986]
[1758293718575,3.2078,4501.6,4501.0,0.2924]
[1758293718773,3.2078,4501.6,4501.1,0.7629]
[1758293718774,0.274,4501.5,4501.1,0.7629]
[1758293719485,0.274,4501.5,4501.0,0.2924]
[1758293719977,0.274,4501.5,4501.0,0.69211]
[1758293720483,0.274,4501.5,4501.1,0.7629]
[1758293720683,0.274,4501.5,4501.2,0.7629]
[1758293721183,0.274,4501.5,4501.1,0.3997]
[1758293721683,0.274,4501.5,4501.0,0.2924]
[1758293722383,0.274,4501.5,4501.1,0.7629]
[1758293722974,9.6,4501.4,4501.0,0.2924]
[1758293723286,3.2078,4501.1,4500.9,0.0222]
[1758293723581,0.272,4501.0,4500.9,0.0222]
[1758293723783,0.272,4501.0,4500.9,0.7851]
[1758293724082,9.872,4501.0,4500.9,0.7851]
[1758293724680,9.872,4501.0,4500.9,0.7629]
[1758293725085,9.872,4501.0,4500.5,0.2924]
[1758293725281,3.2078,4500.6,4500.5,0.2924]
[1758293725479,3.4788,4500.6,4499.9,4.40195986]
[1758293725686,35.994,4500.5,4499.9,0.79434986]
[1758293725884,9.871,4500.4,4499.9,0.79434986]
[1758293726081,9.871,4500.4,4500.1,0.7629]
[1758293726285,9.871,4500.4,4499.9,0.79434986]
[1758293726482,9.6,4500.4,4499.9,0.79434986]
[1758293726780,0.271,4500.3,4499.9,0.79434986]
[1758293726986,9.6,4500.4,4500.1,0.7629]
[1758293727289,36.267,4500.3,4500.1,0.7629]
[1758293727582,35.996,4500.3,4500.0,0.69219]
[1758293727883,0.27,4500.2,4500.1,0.7629]
[1758293729186,35.996,4500.3,4500.1,1.16269]
[1758293729381,9.6,4500.4,4500.2,0.39978]
[1758293729586,9.6,4500.4,4500.3,0.7304]
[1758293729783,45.869,4500.4,4500.3,0.7304]
[1758293730089,45.599,4500.4,4500.3,0.7304]
[1758293730280,9.6,4500.4,4500.3,0.7304]
[1758293730484,9.869,4500.4,4500.3,0.7304]
[1758293733683,9.6,4500.4,4500.3,0.7304]
[1758293733889,9.868,4500.4,4500.3,0.7304]
[1758293734188,9.6,4500.4,4500.3,0.7304]
[1758293734386,9.868,4500.4,4500.3,0.7304]
[1758293734787,9.868,4500.4,4500.0,1.0228]
[1758293734986,3.2078,4500.1,4499.6,0.0222]
[1758293735188,0.268,4500.0,4499.6,0.7526]
[1758293735386,9.6,4499.9,4499.7,0.7304]
[1758293735693,0.268,4499.8,4499.5,0.2924]
[1758293735886,3.2078,4499.6,4499.5,0.2924]
[1758293736084,3.4758,4499.6,4499.5,1.0228]
[1758293736281,3.4758,4499.6,4499.0,1.0228]
[1758293736490,3.2078,4499.1,4498.5,0.2924]
[1758293736688,0.268,4499.0,4498.5,0.2924]
[1758293736889,36.003,4498.9,4498.6,0.7304]
[1758293737088,9.868,4498.8,4498.6,0.7304]
[1758293737290,9.868,4498.8,4498.5,0.2924]
[1758293738494,9.868,4498.8,4498.7,0.7304]
[1758293739297,9.6,4498.8,4498.7,0.7304]
[1758293739490,9.867,4498.8,4498.7,0.7304]
[1758293739997,9.866,4498.8,4498.7,0.7304]
[1758293740198,9.6,4498.8,4498.7,0.7304]
[1758293740498,9.866,4498.8,4498.7,0.7304]
[1758293740693,9.6,4498.8,4498.7,0.7304]
[1758293740894,9.866,4498.8,4498.7,0.7304]
[1758293741295,9.866,4498.8,4498.5,1.0228]
[1758293741699,9.866,4498.8,4498.6,0.7304]
[1758293741996,0.266,4498.7,4498.6,0.7304]
[1758293742701,9.866,4498.7,4498.5,0.2924]
[1758293743199,9.866,4498.7,4498.5,1.0228]
[1758293743401,3.2078,4498.6,4498.3,0.0222]
[1758293743589,0.265,4498.5,4498.3,0.7526]
[1758293743789,0.265,4498.5,4498.4,0.7304]
[1758293744000,3.2078,4498.6,4498.5,0.2963]
[1758293744197,3.4728,4498.6,4498.5,1.0267]
[1758293744697,3.2078,4498.6,4498.5,1.0267]
[1758293744892,3.4728,4498.6,4498.5,1.0267]
[1758293745603,3.4728,4498.6,4498.2,0.39996]
[1758293745797,3.2078,4498.6,4498.3,0.39995]
[1758293745996,0.265,4498.5,4498.4,0.7304]
[1758293746194,3.2078,4498.6,4498.4,1.13034]
[1758293746501,3.2078,4498.6,4498.5,1.5152]
[1758293746701,3.2078,4498.6,4498.5,1.9947]
[1758293746901,3.4718,4498.6,4498.5,1.5152]
[1758293747202,3.4718,4498.6,4498.2,0.7304]
[1758293747500,3.4718,4498.6,4498.5,0.2963]
[1758293747696,3.4718,4498.6,4498.5,1.0267]
[1758293748597,3.2078,4498.6,4498.5,0.2963]
[1758293748802,3.4718,4498.6,4498.2,0.7304]
[1758293749098,3.4718,4498.6,4498.1,0.0222]
[1758293749302,3.4718,4498.6,4498.2,0.7304]
[1758293749801,3.4718,4498.6,4498.1,0.5107]
[1758293750002,3.2078,4498.6,4498.5,1.0267]
[1758293750206,3.4708,4498.6,4498.5,1.5152]
[1758293750408,3.4708,4498.6,4498.2,0.7304]
[1758293751098,3.2078,4498.6,4498.5,0.2963]
[1758293751298,3.4708,4498.6,4498.5,1.0267]
[1758293752206,2.225,4501.0,4499.4,0.39986]
[1758293752207,0.263,4499.5,4499.4,0.39986]
[1758293752504,1.2898,4499.5,4499.4,3.2078]
[1758293753407,1.0268,4499.5,4499.4,3.2078]
[1758293753805,1.2898,4499.5,4499.4,3.2078]
[1758293755399,1.0268,4500.0,4499.9,0.39981]
[1758293755599,37.3058,4500.0,4499.9,3.60761]
[1758293756599,37.0438,4500.0,4499.9,3.60761]
[1758293756808,37.3058,4500.0,4499.9,3.60761]
[1758293758805,37.0438,4500.0,4499.9,3.60761]
[1758293759008,0.2911,4500.5,4499.9,3.60761]
[1758293759009,1.1012,4500.5,4500.4,0.39977]
[1758293759210,37.3762,4500.5,4500.4,3.60757]
[1758293760812,1.1012,4500.5,4500.4,3.60757]
[1758293761109,1.3622,4500.5,4500.4,3.60757]
[1758293761505,1.3622,4500.5,4500.4,3.2078]
[1758293762513,1.3622,4500.5,4499.7,0.0222]
[1758293762514,0.8101,4499.9,4499.7,0.0222]
[1758293762707,0.26,4499.8,4499.7,0.0222]
[1758293763011,1.0701,4499.8,4499.3,0.39986]
[1758293763407,1.0701,4499.8,4499.4,0.39985]
[1758293763807,0.26,4499.8,4499.4,0.39985]
[1758293764107,0.8101,4499.6,4499.2,3.2078]
[1758293764304,0.26,4499.7,4499.2,3.9568]
[1758293764505,0.8101,4499.4,4499.2,3.2078]
[1758293764709,0.3123,4499.5,4499.2,3.2078]
[1758293764710,1.0701,4499.3,4499.2,3.2078]
[1758293765607,1.28904294,4499.3,4499.2,3.2078]
[1758293766702,1.02904294,4499.3,4499.2,3.2078]
[1758293767015,0.8101,4499.8,4499.3,0.39986]
[1758293767211,0.3123,4500.0,4499.3,0.39986]
[1758293767212,0.8101,4499.6,4499.3,0.39986]
[1758293767411,36.271,4499.5,4499.3,0.749]
[1758293767713,0.8101,4499.4,4499.3,0.749]
[1758293769412,36.271,4499.4,4499.3,0.749]